bitfinex/quotes_SOLUSD_20240826
["timestamp","ask_amount","ask_price","bid_price","bid_amount"]
[1724713494377,0.13577984,157.49,157.48,52.93977599]
[1724713496278,0.13577984,157.49,157.48,7.93977599]
[1724713496954,0.13577984,157.49,157.48,6.35]
[1724713497159,0.13577984,157.49,157.48,7.93986374]
[1724713502982,0.13577984,157.49,157.48,7.93978541]
[1724713503167,13.369995,157.5,157.48,7.93978541]
[1724713503565,13.369995,157.5,157.49,1.58978541]
[1724713503968,13.49658171,157.5,157.49,1.58978541]
[1724713508965,35.17968171,157.5,157.49,1.58978541]
[1724713509172,6.3503,157.48,157.42,6.3521]
[1724713509474,12.369995,157.43,157.42,6.3521]
[1724713510379,12.369995,157.45,157.44,6.3515]
[1724713514289,12.369995,157.47,157.45,6.3511]
[1724713514694,12.369995,157.47,157.46,6.3508]
[1724713516269,12.369995,157.49,157.47,6.3503]
[1724713516693,21.8147,157.47,157.34,19.50430506]
[1724713516866,6.354,157.39,157.29,37.9786]
[1724713517065,6.3519,157.44,157.29,56.99036769]
[1724713517288,12.369995,157.4,157.29,56.99036769]
[1724713517491,12.369995,157.4,157.31,16.1375]
[1724713517867,12.369995,157.4,157.37,6.3541]
[1724713518769,12.369995,157.38,157.35,22.242]
[1724713519299,12.369995,157.36,157.35,22.242]
[1724713523173,12.369995,157.36,157.35,15.8872]
[1724713523580,12.369995,157.39,157.35,15.8872]
[1724713523768,12.369995,157.39,157.36,45.0]
[1724713523971,0.12261548,157.37,157.36,51.3548]
[1724713527680,0.12261548,157.37,157.36,58.002]
[1724713527882,0.12261548,157.37,157.36,59.2725962]
[1724713528104,0.12261548,157.37,157.36,58.002]
[1724713538908,0.12261548,157.37,157.36,6.3548]
[1724713540413,0.12261548,157.37,157.36,51.3548]
[1724713541106,0.12261548,157.37,157.36,50.3548]
[1724713543098,12.369995,157.42,157.39,6.3533]
[1724713543992,0.11720921,157.4,157.39,6.3533]
[1724713559433,12.48720421,157.4,157.39,6.3536]
[1724713562032,0.11720921,157.4,157.39,6.3536]
[1724713562333,0.11720921,157.4,157.39,51.3536]
[1724713563144,12.369995,157.42,157.4,6.3531]
[1724713564017,0.13525625,157.41,157.4,6.3531]
[1724713565935,0.13525625,157.41,157.39,51.3535]
[1724713566229,12.369995,157.4,157.39,51.3535]
[1724713568838,0.13525625,157.41,157.4,6.3532]
[1724713569136,0.13525625,157.41,157.4,51.3532]
[1724713569937,0.13525625,157.41,157.4,54.73188128]
[1724713570618,0.13525625,157.41,157.4,51.3532]
[1724713571013,0.13525625,157.41,157.4,54.73181496]
[1724713574253,0.13525625,157.41,157.4,54.73181507]
[1724713574546,0.13525625,157.41,157.4,56.00432622]
[1724713575043,0.13525625,157.41,157.4,54.73181507]
[1724713576459,0.13525625,157.41,157.4,56.00426679]
[1724713576632,0.13525625,157.41,157.4,6.3532]
[1724713583233,12.369995,157.41,157.4,22.2357]
[1724713583965,12.50695161,157.41,157.4,22.2357]
[1724713592043,12.50695161,157.41,157.4,15.8826]
[1724713593229,12.50695161,157.41,157.39,6.3535]
[1724713597052,0.13695661,157.41,157.4,6.3532]
[1724713597361,0.13695661,157.41,157.4,54.73197806]
[1724713599637,0.13695661,157.41,157.4,54.73184461]
[1724713600465,0.13695661,157.41,157.4,56.44376225]
[1724713600707,0.13695661,157.41,157.4,70.27651434]
[1724713600970,0.13471581,157.43,157.42,53.9955]
[1724713601276,0.13737597,157.44,157.43,6.352]
[1724713601568,0.13737597,157.44,157.43,69.83584878]
[1724713601746,0.13783883,157.45,157.44,6.3516]
[1724713601946,6.3455,157.59,157.45,6.3512]
[1724713602152,12.369995,157.57,157.45,24.83504878]
[1724713602355,12.369995,157.57,157.45,56.00229669]
[1724713602667,12.369995,157.57,157.45,61.96481076]
[1724713603055,12.369995,157.55,157.45,69.8317699]
[1724713603256,12.369995,157.53,157.51,15.8719]
[1724713603453,12.369995,157.53,157.45,45.0]
[1724713603643,12.369995,157.51,157.49,6.3495]
[1724713603971,0.13898181,157.5,157.49,6.3495]
[1724713604552,0.13898181,157.5,157.47,15.8754]
[1724713604756,12.369995,157.49,157.48,6.3499]
[1724713607682,0.13898181,157.5,157.48,6.3499]
[1724713608201,0.13898181,157.5,157.49,6.3496]
[1724713608768,0.13898181,157.5,157.47,15.8754]
[1724713609371,0.13898181,157.5,157.48,6.3496]
[1724713609785,0.13898181,157.5,157.49,6.3496]
[1724713611367,0.13898181,157.5,157.49,51.3496]
[1724713613081,0.13898181,157.5,157.49,66.8429]
[1724713620563,0.13898181,157.5,157.49,51.3496]
[1724713621293,0.13898181,157.5,157.49,6.3496]
[1724713623197,12.369995,157.52,157.5,6.3492]
[1724713624666,12.369995,157.52,157.49,22.223]
[1724713624977,12.369995,157.5,157.49,22.223]
[1724713626487,12.369995,157.5,157.47,6.3503]
[1724713626792,12.369995,157.48,157.47,6.3503]
[1724713627002,12.369995,157.48,157.46,22.2274]
[1724713627173,12.369995,157.48,157.46,15.8767]
[1724713627374,12.369995,157.48,157.47,6.3504]
[1724713628210,16.2839,157.54,157.5,6.3492]
[1724713628398,12.369995,157.53,157.49,6.3494]
[1724713628871,16.2839,157.54,157.49,6.3494]
[1724713629074,12.369995,157.53,157.5,6.3491]
[1724713629377,15.9214,157.58,157.51,6.3484]
[1724713629576,18.716795,157.56,157.51,6.3484]
[1724713630302,12.369995,157.54,157.51,6.3484]
[1724713631090,6.3465,157.57,157.52,6.3482]
[1724713631278,12.369995,157.56,157.52,6.3482]
[1724713631682,1.58698596,157.55,157.52,6.3482]
[1724713632505,12.369995,157.56,157.52,6.3482]
[1724713633177,12.369995,157.56,157.54,6.3474]
[1724713633381,12.369995,157.56,157.53,15.8697]
[1724713633791,12.369995,157.56,157.53,22.2176]
[1724713634813,12.369995,157.56,157.53,15.8697]
[1724713635115,6.3464,157.57,157.53,15.8697]
[1724713635282,12.369995,157.56,157.53,15.8697]
[1724713635785,12.369995,157.54,157.47,45.0]
[1724713636117,12.369995,157.54,157.46,47.7127]
[1724713636118,12.369995,157.51,157.46,15.9599]
[1724713636287,12.369995,157.51,157.43,6.63539355]
[1724713636489,12.369995,157.51,157.48,6.3496]
[1724713636916,12.369995,157.53,157.49,15.8733]
[1724713637497,12.369995,157.53,157.5,45.0]
[1724713638698,12.369995,157.53,157.51,6.3487]
[1724713639999,12.369995,157.55,157.51,6.3487]
[1724713640198,12.369995,157.55,157.5,45.0]
[1724713640199,12.369995,157.55,157.52,6.3483]
[1724713640920,15.9214,157.58,157.5,76.7448]
[1724713641118,6.3451,157.61,157.55,6.3467]
[1724713641417,12.369995,157.59,157.55,6.3471]
[1724713643414,12.369995,157.57,157.54,6.3475]
[1724713646597,12.369995,157.57,157.48,6.4603]
[1724713646598,12.369995,157.55,157.52,6.348]
[1724713646818,12.369995,157.55,157.44,28.94415556]
[1724713646819,18.717995,157.53,157.47,4.6465563]
[1724713647023,12.369995,157.51,157.48,6.3499]
[1724713647399,12.369995,157.51,157.47,9.72537988]
[1724713647794,12.369995,157.51,157.48,6.3498]
[1724713648027,1.58734413,157.52,157.48,6.3498]
[1724713649109,1.58734413,157.52,157.49,45.0]
[1724713649517,37.36538638,157.53,157.49,45.0]
[1724713649518,31.01738638,157.53,157.49,45.0]
[1724713649733,31.01738638,157.53,157.5,6.3491]
[1724713649907,32.60464774,157.55,157.51,45.0]
[1724713650433,1.58709825,157.54,157.51,45.0]
[1724713651235,31.01738638,157.53,157.48,15.874]
[1724713651419,31.01738638,157.51,157.47,6.3504]
[1724713651625,31.01738638,157.53,157.48,6.35]
[1724713653824,31.01738638,157.53,157.49,6.3494]
[1724713654532,32.60458945,157.53,157.49,6.3494]
[1724713654733,38.95268945,157.53,157.47,15.8758]
[1724713654917,31.01738638,157.51,157.47,15.8758]
[1724713655121,1.58750698,157.5,157.47,15.8758]
[1724713655933,1.58750698,157.5,157.47,22.2261]
[1724713656829,31.01738638,157.51,157.47,22.2261]
[1724713657612,31.01738638,157.51,157.44,15.8787]
[1724713657613,37.36628638,157.51,157.44,15.8787]
[1724713657816,31.01738638,157.47,157.42,6.6290012]
[1724713658011,7.93882266,157.46,157.4,4.65021344]
[1724713658311,37.36778638,157.47,157.42,6.3523]
[1724713658733,1.58799937,157.46,157.42,6.3523]
[1724713659845,37.36778638,157.47,157.41,6.3527]
[1724713659846,1.58800157,157.45,157.41,6.3527]
[1724713660337,6.351,157.46,157.41,6.3527]
[1724713661019,32.60552851,157.45,157.41,6.3527]
[1724713661837,38.95672851,157.45,157.4,15.8821]
[1724713662045,1.58827356,157.44,157.4,15.8821]
[1724713663434,1.58827356,157.44,157.4,22.2352]
[1724713664441,31.01738638,157.43,157.4,15.8821]
[1724713666543,31.01738638,157.43,157.4,22.2353]
[1724713669640,31.01738638,157.45,157.41,6.3527]
[1724713669840,31.01738638,157.45,157.42,6.3524]
[1724713670144,12.41709452,157.45,157.42,6.3524]
[1724713670956,15.3341,157.48,157.44,6.3516]
[1724713671252,12.41709452,157.45,157.42,15.8803]
[1724713672758,12.41709452,157.45,157.43,6.3519]
[1724713673128,12.41709452,157.47,157.44,6.3516]
[1724713673628,14.00502065,157.47,157.44,6.3516]
[1724713673835,12.41709452,157.47,157.44,6.3516]
[1724713679465,15.3341,157.48,157.44,6.3516]
[1724713679466,1.5878601,157.48,157.46,6.3507]
[1724713679754,65.14987808,157.52,157.46,6.3507]
[1724713679755,12.41709452,157.49,157.46,6.3507]
[1724713680639,12.41709452,157.49,157.45,6.3511]
[1724713680640,1.58773967,157.48,157.45,6.3511]
[1724713680828,12.41709452,157.49,157.45,6.3511]
[1724713684452,21.8283,157.56,157.51,6.3488]
[1724713684637,12.41709452,157.55,157.5,15.8722]
[1724713684836,12.41709452,157.55,157.5,22.221]
[1724713685438,12.41709452,157.53,157.5,22.221]
[1724713687361,12.41709452,157.55,157.5,22.221]
[1724713688654,1.58721694,157.54,157.5,22.221]
[1724713689830,21.8283,157.56,157.51,6.3487]
[1724713690060,32.41709452,157.55,157.51,6.3487]
[1724713690642,65.51217808,157.6,157.5,15.8722]
[1724713690841,12.41709452,157.56,157.52,6.3483]
[1724713692964,12.41709452,157.54,157.5,15.8722]
[1724713693162,12.41709452,157.54,157.5,22.221]
[1724713693339,14.00424193,157.54,157.5,22.221]
[1724713693867,14.00424193,157.54,157.51,6.3487]
[1724713694071,12.41709452,157.52,157.51,6.3487]
[1724713695639,12.41709452,157.52,157.5,22.2213]
[1724713699263,14.00424193,157.54,157.5,22.2213]
[1724713706657,18.76469452,157.54,157.5,15.8722]
[1724713707461,12.41709452,157.52,157.5,15.8722]
[1724713711276,12.41709452,157.52,157.49,6.3493]
[1724713711581,1.58740329,157.51,157.49,6.3493]
[1724713712671,12.41709452,157.52,157.49,6.3493]
[1724713712860,14.00447476,157.52,157.49,6.3493]
[1724713713257,1.58737995,157.51,157.49,6.3493]
[1724713714684,12.41709452,157.52,157.49,6.3493]
[1724713715066,1.58738367,157.51,157.48,6.3499]
[1724713718293,1.58738367,157.51,157.47,22.2257]
[1724713718583,12.41709452,157.5,157.47,22.2257]
[1724713718890,1.58754774,157.49,157.47,22.2257]
[1724713719887,12.41709452,157.48,157.44,15.8788]
[1724713720064,1.58778817,157.47,157.44,15.8788]
[1724713720390,1.58778817,157.47,157.44,22.2303]
[1724713724690,18.76799452,157.46,157.42,6.3523]
[1724713724892,1.58808845,157.45,157.42,6.3523]
[1724713725765,6.352,157.43,157.38,15.8848]
[1724713725972,7.9402797,157.43,157.38,15.8848]
[1724713726197,1.58829179,157.42,157.39,6.3536]
[1724713726378,15.8748,157.49,157.38,15.8848]
[1724713726582,6.3513,157.45,157.4,6.3528]
[1724713727301,12.41709452,157.44,157.41,6.3528]
[1724713734797,12.41709452,157.45,157.42,6.3524]
[1724713735180,12.41709452,157.45,157.41,22.2347]
[1724713738000,1.58811072,157.44,157.41,22.2347]
[1724713740699,12.41709452,157.45,157.41,22.2347]
[1724713740892,14.00514763,157.45,157.41,22.2347]
[1724713742080,12.41709452,157.45,157.41,22.2347]
[1724713745511,14.00517077,157.45,157.41,22.2347]
[1724713748715,12.41709452,157.45,157.41,22.2347]
[1724713752315,6.351,157.46,157.41,22.2347]
[1724713752496,6.3505,157.47,157.42,6.3523]
[1724713752697,12.41709452,157.45,157.42,6.3523]
[1724713755223,6.35,157.48,157.43,62.14985171]
[1724713755391,6.35,157.48,157.43,60.8796]
[1724713755592,18.76669452,157.49,157.43,60.8796]
[1724713755893,12.41709452,157.49,157.43,60.8796]
[1724713756208,15.8713,157.52,157.47,6.3503]
[1724713756209,18.76579452,157.52,157.47,6.3503]
[1724713758091,18.76639452,157.5,157.45,22.2286]
[1724713758291,12.41709452,157.48,157.45,22.2286]
[1724713763922,18.76639452,157.5,157.45,22.2286]
[1724713764519,18.76639452,157.5,157.46,6.3507]
[1724713767129,12.41709452,157.5,157.46,6.3507]
[1724713768903,12.41709452,157.5,157.47,6.3504]
[1724713778938,12.41709452,157.5,157.46,6.3507]
[1724713784338,12.41709452,157.5,157.49,80.0]
[1724713793939,20.35372094,157.5,157.49,80.0]
[1724713794322,18.76629452,157.5,157.49,80.0]
[1724713798946,16.1673,157.54,157.5,61.23370548]
[1724713799248,12.41709452,157.51,157.5,61.23370548]
[1724713800218,18.76589452,157.51,157.5,61.23370548]
[1724713810065,6.3488,157.51,157.5,61.23370548]
[1724713813157,32.41709452,157.53,157.5,61.23370548]
[1724713813158,20.0,157.53,157.5,61.23370548]
[1724713813374,6.3472,157.55,157.5,67.58280548]
[1724713813667,12.41709452,157.57,157.52,6.3483]
[1724713814675,6.3468,157.56,157.52,6.3483]
[1724713824978,6.3468,157.56,157.51,28.4881]
[1724713829971,6.3468,157.56,157.52,6.3483]
[1724713835795,6.346,157.58,157.53,51.3477]
[1724713836795,6.346,157.58,157.55,61.23370548]
[1724713838382,12.41709452,157.57,157.55,61.23370548]
[1724713838570,18.76359452,157.57,157.55,61.23370548]
[1724713844282,1.58670842,157.6,157.57,42.47011096]
[1724713844510,12.41709452,157.58,157.57,42.47011096]
[1724713844716,32.41709452,157.58,157.57,42.47011096]
[1724713845432,15.8594,157.64,157.57,42.47011096]
[1724713845612,6.344,157.63,157.59,6.3455]
[1724713845787,6.344,157.63,157.58,6.3458]
[1724713852704,6.344,157.63,157.6,42.47011096]
[1724713857009,18.76159452,157.62,157.6,42.47011096]
[1724713857209,6.3447,157.61,157.6,42.47011096]
[1724713857415,7.93107039,157.61,157.6,42.47011096]
[1724713857828,15.6509,157.67,157.65,6.26344605]
[1724713858031,32.41709452,157.66,157.57,15.8654]
[1724713858211,12.41709452,157.59,157.57,15.8654]
[1724713859331,6.3448,157.61,157.57,15.8654]
[1724713859708,18.76189452,157.61,157.57,15.8654]
[1724713860852,0.82316777,157.6,157.57,15.8654]
[1724713861149,13.24026229,157.6,157.57,15.8654]
[1724713861921,12.41709452,157.6,157.57,15.8654]
[1724713867746,18.76299452,157.58,157.54,15.8684]
[1724713868318,12.41709452,157.58,157.54,22.2157]
[1724713869833,18.76319452,157.58,157.54,22.2157]
[1724713874454,6.3461,157.58,157.54,22.2157]
[1724713874954,18.76279452,157.59,157.54,22.2157]
[1724713886454,18.76279452,157.59,157.55,6.3471]
[1724713886845,12.41709452,157.63,157.56,15.8662]
[1724713887032,12.41709452,157.63,157.57,45.0]
[1724713887450,6.3446,157.62,157.57,51.346]
[1724713888666,6.3439,157.63,157.58,28.0616]
[1724713889658,15.8532,157.7,157.58,37.5801]
[1724713889875,12.41709452,157.66,157.59,45.0]
[1724713890046,7.16636777,157.65,157.6,6.3451]
[1724713890437,12.41709452,157.64,157.6,6.3451]
[1724713892041,19.58386229,157.64,157.6,6.3451]
[1724713893155,18.76069452,157.64,157.59,51.3455]
[1724713895582,15.8532,157.7,157.6,15.8622]
[1724713895867,6.3428,157.66,157.61,45.0]
[1724713896076,18.75989452,157.66,157.61,45.0]
[1724713896650,18.75989452,157.66,157.61,51.3446]
[1724713897055,18.75989452,157.66,157.62,6.3443]
[1724713897962,12.41709452,157.64,157.54,21.7158]
[1724713898274,12.41709452,157.59,157.55,1.58904755]
[1724713898455,12.41709452,157.59,157.54,21.7158]
[1724713898845,12.41709452,157.57,157.54,21.7158]
[1724713899282,12.41709452,157.58,157.55,6.3471]
[1724713899573,12.41709452,157.58,157.54,21.7158]
[1724713899759,12.41709452,157.56,157.5,38.4218]
[1724713899944,12.41709452,157.52,157.5,38.4218]
[1724713900569,12.41709452,157.52,157.5,44.7709]
[1724713901685,6.3468,157.56,157.51,6.3487]
[1724713901865,12.41709452,157.55,157.51,6.3487]
[1724713910081,12.41709452,157.53,157.5,44.7709]
[1724713910453,6.3474,157.55,157.5,44.7709]
[1724713910776,12.41709452,157.54,157.5,44.7709]
[1724713912176,15.8626,157.61,157.52,15.8702]
[1724713912388,18.76359452,157.57,157.53,6.3479]
[1724713912679,12.41709452,157.55,157.52,15.8702]
[1724713912885,15.859,157.64,157.54,15.8682]
[1724713913186,12.41709452,157.59,157.55,51.3471]
[1724713913356,12.41709452,157.59,157.55,45.0]
[1724713913551,15.3182,157.65,157.55,45.0]
[1724713913552,6.3444,157.62,157.58,6.3459]
[1724713913804,15.5658,157.7,157.59,45.0]
[1724713914089,287.1016,157.73,157.63,6.3436]
[1724713914090,6.342,157.68,157.63,6.3436]
[1724713914256,271.25,157.73,157.64,1.26862369]
[1724713914455,12.41709452,157.71,157.65,6.186]
[1724713914654,12.41709452,157.71,157.65,7.45444445]
[1724713915471,271.25,157.73,157.65,7.45444445]
[1724713915657,6.3412,157.7,157.65,13.79744445]
[1724713915985,6.3408,157.71,157.65,13.79744445]
[1724713916364,6.3408,157.71,157.66,6.3427]
[1724713920773,6.3408,157.71,157.67,46.26822654]
[1724713921287,6.3408,157.71,157.67,45.0]
[1724713921490,6.3408,157.71,157.6,62.66230632]
[1724713921491,30.93820632,157.71,157.62,16.461]
[1724713921794,30.93820632,157.69,157.62,16.461]
[1724713921991,30.93820632,157.71,157.62,16.461]
[1724713922868,30.93820632,157.71,157.64,6.3435]
[1724713923484,30.93820632,157.67,157.61,6.186]
[1724713923676,37.28090632,157.67,157.61,12.5304]
[1724713923879,37.28090632,157.67,157.62,6.3442]
[1724713927173,6.3427,157.66,157.62,6.3442]
[1724713930405,30.93820632,157.71,157.62,15.8602]
[1724713930607,21.7851,157.78,157.67,6.3423]
[1724713930904,30.93820632,157.74,157.67,6.3423]
[1724713931106,6.3407,157.71,157.66,6.3427]
[1724713931321,6.3407,157.71,157.67,45.0]
[1724713933985,6.3403,157.72,157.67,51.3423]
[1724713935313,6.3408,157.71,157.67,45.0]
[1724713935906,6.3412,157.7,157.66,15.8563]
[1724713936117,6.3416,157.69,157.65,21.5917]
[1724713937789,6.3419,157.68,157.65,15.2488]
[1724713938288,18.72128015,157.69,157.65,15.2488]
[1724713938899,18.72128015,157.69,157.65,21.5919]
[1724713941211,6.3411,157.71,157.65,21.5919]
[1724713941418,15.8494,157.74,157.65,21.5919]
[1724713941419,15.8494,157.74,157.66,51.3423]
[1724713941725,6.3408,157.71,157.66,51.3423]
[1724713951094,6.3408,157.71,157.67,6.3422]
[1724713954698,6.3408,157.71,157.66,51.3426]
[1724713954909,0.82316777,157.71,157.65,31.1058]
[1724713955115,37.27772118,157.69,157.65,37.4488]
[1724713962025,12.37981282,157.68,157.65,37.4488]
[1724713964409,12.37981282,157.66,157.61,37.8899]
[1724713964626,12.37981282,157.64,157.62,1.58857156]
[1724713964929,12.37981282,157.64,157.61,44.2343]
[1724713965110,12.37981282,157.64,157.62,1.58857311]
[1724713965312,12.37981282,157.64,157.61,44.2343]
[1724713965832,12.37981282,157.64,157.62,45.0]
[1724713967914,12.37981282,157.64,157.62,51.3443]
[1724713971522,18.72251282,157.66,157.62,51.3443]
[1724713972811,12.37981282,157.66,157.62,51.3443]
[1724713974124,12.37981282,157.66,157.63,1.58848464]
[1724713974330,12.37981282,157.66,157.62,51.3443]
[1724713974538,12.37981282,157.66,157.63,1.58848464]
[1724713974741,12.37981282,157.66,157.63,6.3438]
[1724713974919,6.3423,157.67,157.64,45.0]
[1724713975120,18.72171282,157.68,157.64,45.0]
[1724713977035,6.3419,157.68,157.64,45.0]
[1724713977248,12.37981282,157.67,157.64,45.0]
[1724713980045,6.3416,157.69,157.64,45.0]
[1724713980349,12.37981282,157.7,157.66,6.3427]
[1724713980531,6.3408,157.71,157.67,45.0]
[1724713980855,12.37981282,157.71,157.67,51.3422]
[1724713981152,15.8481,157.75,157.67,51.3422]
[1724713981339,12.37981282,157.71,157.67,51.3422]
[1724713982948,6.3407,157.72,157.67,51.3422]
[1724713983326,12.37981282,157.71,157.67,51.3422]
[1724713983534,6.3407,157.72,157.68,1.2681893]
[1724713983740,18.72051282,157.72,157.67,51.3422]
[1724713983931,18.72051282,157.72,157.68,6.3419]
[1724713984127,12.37981282,157.72,157.68,6.3419]
[1724713984332,12.37981282,157.72,157.69,45.0]
[1724713986858,6.3395,157.74,157.69,45.0]
[1724713987030,6.3395,157.74,157.69,6.3412]
[1724713987228,12.37981282,157.73,157.69,6.3412]
[1724713990832,12.37981282,157.73,157.7,45.0]
[1724713991033,6.3395,157.74,157.7,45.0]
[1724713991235,18.71931282,157.74,157.7,45.0]
[1724713996267,6.3399,157.73,157.7,45.0]
[1724713997338,12.37981282,157.74,157.7,45.0]
[1724713997339,18.71941282,157.74,157.7,45.0]
[1724714002667,6.3396,157.74,157.7,51.341]
[1724714002877,18.71941282,157.74,157.7,51.341]
[1724714004568,15.8453,157.78,157.71,6.3405]
[1724714004747,12.37981282,157.76,157.72,45.0]
[1724714004947,18.71881282,157.76,157.72,51.3402]
[1724714006768,12.37981282,157.74,157.7,6.3408]
[1724714007073,12.37981282,157.74,157.71,45.0]
[1724714008583,18.71931282,157.74,157.71,45.0]
[1724714011153,6.3395,157.74,157.71,45.0]
[1724714011358,6.3391,157.75,157.71,51.3405]
[1724714013594,18.71851282,157.76,157.71,51.3405]
[1724714014968,6.3391,157.75,157.71,51.3405]
[1724714017676,6.3388,157.76,157.71,51.3405]
[1724714018871,6.3391,157.75,157.71,51.3405]
[1724714023053,6.3388,157.76,157.71,51.3405]
[1724714026383,18.71861282,157.76,157.71,51.3405]
[1724714026882,12.37981282,157.76,157.72,6.3403]
[1724714027181,6.3384,157.77,157.73,45.0]
[1724714027787,6.3384,157.77,157.72,46.26764651]
[1724714028467,6.3384,157.77,157.73,1.26764992]
[1724714028659,6.3384,157.77,157.73,6.3398]
[1724714028880,6.338,157.78,157.74,45.0]
[1724714029055,21.9332,157.82,157.74,52.60696989]
[1724714029056,6.3375,157.79,157.74,52.60696989]
[1724714029256,15.3227,157.84,157.75,1.26752288]
[1724714029481,6.3368,157.81,157.75,1.26752288]
[1724714029679,12.37981282,157.76,157.71,23.1653]
[1724714029875,12.37981282,157.74,157.72,1.58754385]
[1724714030278,12.37981282,157.74,157.73,1.58756205]
[1724714030665,12.37981282,157.74,157.71,29.506]
[1724714030982,12.37981282,157.74,157.72,1.58760946]
[1724714031185,12.37981282,157.74,157.71,29.506]
[1724714031385,12.37981282,157.74,157.72,46.58760964]
[1724714031688,12.37981282,157.74,157.72,45.0]
[1724714043006,12.37981282,157.79,157.73,2.85716014]
[1724714043299,12.37981282,157.79,157.74,1.58731119]
[1724714043503,18.71741282,157.79,157.74,51.3394]
[1724714050599,6.338,157.78,157.74,6.3394]
[1724714051688,18.71731282,157.79,157.74,6.3394]
[1724714052179,18.71731282,157.79,157.75,45.0]
[1724714054486,12.37981282,157.77,157.73,15.8493]
[1724714054779,12.37981282,157.75,157.73,22.1892]
[1724714055008,6.3402,157.73,157.69,15.853]
[1724714055183,12.37981282,157.72,157.69,15.853]
[1724714055702,12.37981282,157.72,157.7,6.341]
[1724714066925,15.8449,157.78,157.71,6.3407]
[1724714067229,12.37981282,157.74,157.71,6.3407]
[1724714069420,0.82316777,157.83,157.69,15.853]
[1724714069421,6.3387,157.77,157.72,6.3402]
[1724714069626,12.37981282,157.76,157.72,6.3402]
[1724714070318,18.71861282,157.76,157.72,6.3402]
[1724714070530,6.3378,157.79,157.68,31.7093]
[1724714070711,12.37981282,157.77,157.71,15.8514]
[1724714070905,18.71841282,157.77,157.72,51.3402]
[1724714071423,18.71841282,157.77,157.73,6.3399]
[1724714072123,12.37981282,157.75,157.72,45.0]
[1724714072718,12.37981282,157.73,157.67,22.8675]
[1724714072918,12.37981282,157.71,157.68,17.44220373]
[1724714073221,12.37981282,157.71,157.68,15.8544]
[1724714073718,12.37981282,157.71,157.7,6.341]
[1724714074114,12.37981282,157.71,157.7,51.341]
[1724714084411,12.37981282,157.73,157.7,51.341]
[1724714084611,12.37981282,157.73,157.71,45.0]
[1724714084827,12.37981282,157.73,157.71,51.3405]
[1724714085034,6.3388,157.76,157.71,51.3405]
[1724714085221,12.37981282,157.74,157.71,51.3405]
[1724714085933,12.37981282,157.74,157.72,6.3402]
[1724714086112,12.37981282,157.74,157.71,45.0]
[1724714087037,12.37981282,157.74,157.72,6.3402]
[1724714088343,12.37981282,157.74,157.73,45.0]
[1724714093647,12.37981282,157.76,157.73,45.0]
[1724714098144,12.37981282,157.76,157.74,6.3393]
[1724714098345,6.3379,157.78,157.75,45.0]
[1724714098654,12.37981282,157.77,157.75,45.0]
[1724714101160,12.37981282,157.77,157.72,22.1902]
[1724714101358,12.37981282,157.75,157.73,52.92722874]
[1724714101536,12.37981282,157.75,157.73,51.3398]
[1724714104047,12.37981282,157.75,157.72,22.1905]
[1724714104966,12.37981282,157.75,157.69,2.52394513]
[1724714104967,12.37981282,157.73,157.69,18.37734513]
[1724714105257,12.37981282,157.71,157.7,1.58757215]
[1724714106339,6.3401,157.73,157.7,1.58757215]
[1724714106552,12.37981282,157.71,157.69,22.1948]
[1724714106864,12.37981282,157.71,157.7,1.58766295]
[1724714108141,12.37981282,157.71,157.69,22.1948]
[1724714108556,12.37981282,157.71,157.7,1.58765387]
[1724714109567,6.3394,157.75,157.7,7.92875387]
[1724714109746,16.6515,157.78,157.69,15.8534]
[1724714109747,12.37981282,157.76,157.71,62.43885387]
[1724714109946,12.37981282,157.76,157.72,1.58765387]
[1724714110275,12.37981282,157.76,157.73,1.58765387]
[1724714110443,12.37981282,157.76,157.72,6.3402]
[1724714110641,12.37981282,157.76,157.73,46.58742613]
[1724714110840,12.37981282,157.76,157.73,45.0]
[1724714111243,12.37981282,157.76,157.73,51.3397]
[1724714113045,18.71771282,157.78,157.74,1.58742336]